bitfinex-derivatives/quotes_ETHF0:USTF0_20250205
["timestamp","ask_amount","ask_price","bid_price","bid_amount"]
[1738757017941,0.00535561,2800.3,2799.8,3.47603302]
[1738757018145,0.00535561,2800.3,2799.8,0.00535561]
[1738757018349,3.2078,2800.2,2799.8,0.00535561]
[1738757018542,0.5846,2800.1,2799.8,0.00535561]
[1738757019651,3.2078,2799.9,2799.8,0.00535561]
[1738757019847,3.2078,2799.9,2799.0,6.67847741]
[1738757020350,40.8,2799.8,2799.0,6.67847741]
[1738757021149,0.5439,2799.7,2799.1,0.00535561]
[1738757022148,3.2078,2799.6,2799.1,0.00535561]
[1738757022344,3.2078,2799.2,2798.1,4.4848]
[1738757022545,3.2078,2798.8,2798.1,3.2078]
[1738757022757,0.5374,2798.7,2798.1,3.2078]
[1738757023348,3.2078,2798.5,2797.4,3.47067741]
[1738757023549,3.2078,2798.5,2798.1,0.00535561]
[1738757025848,3.2078,2798.2,2797.6,3.2078]
[1738757026052,0.5713,2798.1,2797.6,3.2078]
[1738757027053,0.5713,2798.1,2797.6,3.21315561]
[1738757027696,0.5713,2798.1,2797.6,0.00535561]
[1738757027862,3.2078,2797.9,2796.7,3.2078]
[1738757028112,3.2078,2797.6,2796.7,3.2078]
[1738757029260,3.2078,2797.6,2796.9,0.00357042]
[1738757030160,3.2078,2797.6,2797.0,6.67847741]
[1738757030856,3.2078,2797.6,2797.0,3.2078]
[1738757031054,0.5567,2797.5,2797.0,3.2078]
[1738757031254,0.5567,2797.5,2796.9,0.00357042]
[1738757031661,3.2078,2797.3,2796.9,0.00357042]
[1738757033655,0.5432,2797.2,2796.9,0.00357042]
[1738757033854,3.57735561,2798.7,2797.1,3.2078]
[1738757034074,0.00535561,2798.7,2798.2,3.2078]
[1738757034295,0.00535561,2798.7,2798.2,4.874]
[1738757034475,0.00535561,2798.7,2798.3,4.60116742]
[1738757034671,3.2078,2798.6,2798.0,3.2078]
[1738757034867,3.2078,2798.2,2797.7,3.47067741]
[1738757035065,0.00535561,2798.7,2797.8,3.2078]
[1738757035254,3.2078,2798.6,2797.8,3.2078]
[1738757035455,3.2078,2798.3,2797.5,3.2078]
[1738757035866,3.2078,2798.0,2797.3,3.47067741]
[1738757036063,1.6235,2798.2,2797.5,3.2078]
[1738757036568,1.6235,2798.2,2797.8,3.2078]
[1738757036762,1.0853,2798.2,2797.8,3.2078]
[1738757036967,0.54355561,2798.7,2798.1,3.2078]
[1738757037272,0.54355561,2798.7,2798.1,6.67847741]
[1738757038868,0.00535561,2798.7,2798.1,6.67847741]
[1738757039075,0.00535561,2798.7,2798.4,3.2078]
[1738757040367,0.00535561,2798.7,2798.5,3.47067741]
[1738757042977,0.00535561,2798.7,2798.5,6.67847741]
[1738757043173,0.00535561,2798.7,2798.3,0.00357042]
[1738757043571,3.2078,2798.6,2798.3,0.00357042]
[1738757043776,3.7877,2798.6,2797.7,3.2078]
[1738757043978,3.2078,2798.2,2797.7,3.2078]
[1738757044281,3.2078,2797.9,2797.2,3.2078]
[1738757044578,0.5505,2797.8,2797.2,3.2078]
[1738757044874,3.2078,2797.7,2796.8,3.2078]
[1738757045772,3.2078,2797.4,2796.5,6.67847741]
[1738757045979,0.5559,2797.3,2796.5,6.67847741]
[1738757046275,0.00535561,2797.2,2796.5,3.2078]
[1738757049480,0.00535561,2797.2,2796.8,3.2078]
[1738757049977,0.00535561,2797.2,2796.9,8.10754953]
[1738757050275,3.2078,2798.6,2797.2,1.78685]
[1738757050482,3.7741,2798.6,2798.0,3.2078]
[1738757050983,0.5663,2798.6,2798.3,3.2078]
[1738757051177,0.5663,2798.6,2798.3,6.67847741]
[1738757051374,0.5663,2798.6,2798.4,4.61859265]
[1738757051579,0.00535561,2798.7,2798.4,4.61859265]
[1738757051879,0.00535561,2798.7,2798.6,6.67847741]
[1738757052182,3.2078,2799.7,2798.6,6.67847741]
[1738757052384,3.2078,2799.4,2798.9,2.922]
[1738757052578,3.2078,2799.4,2798.6,3.47067741]
[1738757052783,3.2078,2799.4,2798.5,3.2078]
[1738757052984,3.2078,2799.1,2798.5,3.2078]
[1738757055282,0.00535561,2799.2,2798.6,3.47067741]
[1738757055480,0.00535561,2799.2,2798.8,3.2078]
[1738757057389,3.2078,2799.0,2798.4,3.2078]
[1738757057787,3.2078,2799.0,2798.2,3.47603302]
[1738757058090,3.2078,2798.7,2798.2,0.00535561]
[1738757058690,3.2078,2798.4,2798.2,0.00535561]
[1738757058986,0.5409,2798.3,2797.4,4.74867741]
[1738757059190,3.2078,2798.1,2797.3,3.2078]
[1738757059385,3.2078,2798.1,2797.0,6.67847741]
[1738757059981,3.2078,2798.1,2797.3,0.00535561]
[1738757060384,3.2078,2797.8,2797.3,0.00535561]
[1738757060789,0.5553,2798.2,2797.3,0.00535561]
[1738757060790,3.2078,2798.1,2797.3,0.00535561]
[1738757061282,3.2078,2798.1,2797.3,3.21315561]
[1738757061584,3.2078,2798.1,2797.6,3.2078]
[1738757063490,3.2078,2798.1,2797.8,3.47067741]
[1738757063691,3.2078,2798.1,2797.6,3.2078]
[1738757063890,3.2078,2798.1,2797.4,3.2078]
[1738757064091,3.2078,2798.1,2797.3,0.00535561]
[1738757064486,3.2078,2797.8,2797.3,0.00535561]
[1738757065286,3.2078,2797.4,2796.2,3.47067741]
[1738757065592,3.2078,2796.8,2796.1,3.2078]
[1738757066088,3.2078,2796.5,2796.1,3.2078]
[1738757066392,41.327,2797.3,2796.2,3.47067741]
[1738757066393,3.2078,2797.2,2796.2,3.47067741]
[1738757066591,0.00535561,2796.6,2796.2,3.47067741]
[1738757067089,0.00535561,2796.6,2796.4,3.2078]
[1738757069297,0.00535561,2796.6,2796.2,3.47067741]
[1738757070094,0.00535561,2796.6,2796.4,3.2078]
[1738757070799,0.5647,2797.7,2796.5,4.58673602]
[1738757070800,3.7725,2797.7,2796.5,4.58673602]
[1738757070994,3.7725,2797.7,2796.8,3.2078]
[1738757071298,3.2078,2797.4,2796.8,3.2078]
[1738757071800,0.5647,2797.7,2796.9,3.47067741]
[1738757071801,3.7725,2797.7,2796.9,3.47067741]
[1738757072095,0.00535561,2797.4,2796.9,3.47067741]
[1738757072797,0.00535561,2797.4,2796.8,3.21315561]
[1738757073593,3.21315561,2797.4,2796.8,0.00535561]
[1738757073796,3.2078,2797.1,2796.8,0.00535561]
[1738757074196,0.5522,2797.0,2796.8,0.00535561]
[1738757075796,0.5522,2797.0,2796.1,3.2078]
[1738757075998,3.2078,2796.6,2796.1,3.2078]
[1738757077301,3.2078,2796.6,2796.1,6.67847741]
[1738757077504,0.5812,2796.8,2796.1,6.67847741]
[1738757079097,3.2078,2796.9,2796.2,4.63070492]
[1738757081002,0.00535561,2797.4,2796.5,6.67847741]
[1738757081300,0.00535561,2797.4,2795.7,0.0058]
[1738757081301,0.00535561,2797.4,2796.9,3.47067741]
[1738757082003,0.00535561,2797.4,2796.6,1.275]
[1738757082301,0.00535561,2797.4,2796.8,3.2078]
[1738757082498,0.29125561,2797.4,2796.8,3.2078]
[1738757083201,0.29125561,2797.4,2796.9,3.47067741]
[1738757083497,0.29125561,2797.4,2797.3,4.18539741]
[1738757083699,1.1192,2798.7,2797.3,3.47067741]
[1738757083899,1.1192,2798.7,2798.1,3.2078]
[1738757084103,0.5328,2799.2,2798.4,3.2078]
[1738757084404,3.2078,2799.6,2799.0,3.2078]
[1738757084593,40.8,2799.5,2799.0,3.2078]
[1738757084998,40.8,2799.5,2799.0,3.21315561]
[1738757085800,40.8,2799.5,2799.0,0.00535561]
[1738757086808,41.3678,2799.5,2799.0,0.00535561]
[1738757087403,3.2078,2799.3,2799.0,0.00535561]
[1738757087607,40.8,2799.5,2799.0,0.00535561]
[1738757088203,0.00535561,2799.6,2799.0,0.00535561]
[1738757088402,0.00535561,2799.6,2799.1,3.2078]
[1738757088605,3.2078,2799.3,2799.0,0.00535561]
[1738757090207,40.8,2799.5,2799.0,0.00535561]
[1738757090807,44.0078,2799.5,2799.0,0.00535561]
[1738757091107,40.8,2799.5,2799.0,0.00535561]
[1738757091506,44.0078,2799.5,2799.0,0.00535561]
[1738757091708,40.8,2799.5,2799.0,0.00535561]
[1738757091908,40.8,2799.5,2799.0,3.21315561]
[1738757092304,0.00535561,2799.6,2799.4,3.2078]
[1738757092907,0.00535561,2799.6,2799.1,3.2078]
[1738757093314,0.00535561,2799.6,2799.0,0.00535561]
[1738757094013,3.2078,2799.5,2799.0,0.00535561]
[1738757094211,0.5547,2799.4,2799.0,0.00535561]
[1738757094416,0.5455,2799.3,2799.0,0.00535561]
[1738757094909,3.2078,2799.2,2799.0,0.00535561]
[1738757095207,3.2078,2799.2,2798.8,3.2078]
[1738757095402,3.2078,2798.9,2797.6,3.3749]
[1738757095609,3.2078,2798.2,2797.6,3.2078]
[1738757096410,3.21315561,2798.2,2797.6,3.2078]
[1738757096713,3.2078,2797.9,2796.9,3.2078]
[1738757097317,3.2078,2797.6,2796.9,3.2078]
[1738757098415,0.5535,2797.5,2796.9,3.2078]
[1738757100323,3.2078,2797.2,2796.3,3.47067741]
[1738757100824,1.1254,2797.1,2796.2,3.2078]
[1738757101124,3.2078,2796.7,2795.9,3.2078]
[1738757101530,0.5383,2796.6,2795.9,3.2078]
[1738757101825,0.54365561,2796.6,2795.9,3.2078]
[1738757102430,40.8,2796.5,2795.9,7.39354741]
[1738757102617,0.00535561,2796.6,2796.3,3.47067741]
[1738757102923,0.00535561,2796.6,2796.5,3.2078]
[1738757103128,3.2078,2797.6,2796.5,3.2078]
[1738757103326,3.2078,2797.6,2796.9,3.2078]
[1738757103627,1.1382,2798.1,2796.9,3.2078]
[1738757103829,3.2078,2797.9,2796.9,3.2078]
[1738757104024,3.2078,2797.9,2796.7,1.98686]
[1738757104025,3.2078,2797.4,2796.7,3.2078]
[1738757104420,0.71999529,2797.7,2797.1,0.00536529]
[1738757104621,3.2078,2797.2,2796.0,3.47067741]
[1738757104830,3.2078,2796.5,2795.9,3.2078]
[1738757105918,40.8,2796.4,2795.9,3.2078]
[1738757106222,41.37,2796.4,2795.9,3.2078]
[1738757107235,0.57,2796.4,2795.9,3.2078]
[1738757108325,3.2078,2796.5,2795.9,3.2078]
[1738757110223,3.2078,2796.2,2795.6,3.2078]
[1738757110431,0.5475,2796.1,2795.4,3.2078]
[1738757110826,0.00536529,2796.0,2795.4,3.2078]
[1738757111519,0.00536529,2796.0,2795.5,4.57193725]
[1738757112529,0.00536529,2796.0,2795.4,3.2078]
[1738757112730,0.55686529,2796.0,2795.4,3.2078]
[1738757113230,3.2078,2795.8,2794.9,3.2078]
[1738757114726,0.55686529,2796.0,2795.2,6.67847741]
[1738757115129,0.00536529,2796.0,2795.5,3.2078]
[1738757115327,0.00536529,2796.0,2795.8,3.2078]
[1738757116238,0.00536529,2796.0,2795.2,3.47067741]
[1738757116626,0.00536529,2796.0,2795.4,7.9224952]
[1738757117133,0.00536529,2796.0,2795.7,3.2078]
[1738757117336,3.2078,2796.7,2795.7,8.2078]
[1738757117634,3.2078,2797.0,2796.4,3.47067741]
[1738757118431,3.7541,2797.3,2796.6,3.2078]
[1738757118636,0.00536529,2797.0,2796.6,3.2078]
[1738757123435,0.00536529,2797.0,2796.4,0.00536529]
[1738757123635,3.2078,2796.6,2796.4,0.00536529]
[1738757123836,0.00536529,2797.0,2796.4,0.00536529]
[1738757124030,3.2078,2796.6,2796.4,0.00536529]
[1738757124433,0.5647,2796.5,2796.4,0.00536529]
[1738757124737,1.0924,2796.5,2795.6,3.2078]
[1738757124932,3.2078,2796.3,2795.6,3.2078]
[1738757125139,3.2078,2796.3,2795.1,6.67847741]
[1738757125337,3.2078,2796.2,2795.1,6.67847741]
[1738757125538,3.2078,2795.8,2795.1,6.67847741]
[1738757125938,3.2078,2795.8,2795.1,3.2078]
[1738757126740,3.2078,2795.8,2795.1,6.67847741]
[1738757127839,1.074,2796.5,2795.5,3.47067741]
[1738757128045,1.074,2796.5,2795.7,3.2078]
[1738757128438,3.2078,2796.4,2795.7,3.2078]
[1738757129046,3.2078,2796.4,2795.6,3.2078]
[1738757130244,3.2078,2796.4,2795.3,3.2078]
[1738757130443,3.2078,2796.0,2795.3,3.2078]
[1738757130741,0.5749,2795.9,2795.3,3.2078]
[1738757131246,0.572,2795.8,2795.3,3.2078]
[1738757131943,0.5749,2795.9,2795.3,3.2078]
[1738757132338,0.5749,2795.9,2795.3,4.45745589]
[1738757132540,0.5749,2795.9,2795.3,3.2078]
[1738757132741,0.5749,2795.9,2795.3,4.45745589]
[1738757132948,0.5749,2795.9,2795.6,3.2078]
[1738757134534,0.5749,2795.9,2795.3,3.2078]
[1738757134936,3.2078,2795.4,2794.7,3.2078]
[1738757135146,3.2078,2795.0,2794.2,1.24965589]
[1738757135334,0.5325,2794.9,2794.1,1.56206987]
[1738757135533,3.2078,2794.7,2794.0,1.24965589]
[1738757135737,3.2078,2794.7,2793.9,6.67847741]
[1738757136248,3.2078,2794.7,2793.9,3.2078]
[1738757136743,0.5325,2794.9,2793.9,6.67847741]
[1738757136946,0.5325,2794.9,2794.3,3.2078]
[1738757137743,0.5325,2794.9,2794.6,3.2078]
[1738757137940,3.2078,2795.2,2794.6,3.2078]
[1738757138137,0.00536529,2795.3,2794.9,3.2078]
[1738757138934,0.00536529,2795.3,2795.2,3.2078]
[1738757139335,0.00536529,2795.3,2795.2,7.90508757]
[1738757140141,0.16226529,2795.3,2795.2,7.90508757]
[1738757140741,0.16226529,2795.3,2795.2,8.2078]
[1738757140943,0.16226529,2795.3,2795.2,12.87341214]
[1738757141342,0.16226529,2795.3,2795.2,7.87341214]
[1738757141545,0.16226529,2795.3,2795.2,3.2078]
[1738757141746,0.16226529,2795.3,2795.1,0.00473827]
[1738757142243,3.2078,2795.2,2795.1,0.00473827]
[1738757142438,3.2078,2795.2,2794.4,3.2078]
[1738757142643,0.5523,2795.1,2794.4,3.2078]
[1738757142852,3.2078,2794.8,2794.4,3.2078]
[1738757143147,3.7601,2795.1,2794.4,3.2078]
[1738757143742,0.16226529,2795.3,2794.4,3.2078]
[1738757144147,0.16226529,2795.3,2794.7,3.2078]
[1738757144345,3.37006529,2795.3,2794.7,3.2078]
[1738757144545,3.2078,2794.9,2794.3,3.2078]
[1738757144750,3.2078,2794.9,2794.0,3.2078]
[1738757145146,1.0894,2794.8,2794.0,3.2078]
[1738757145649,3.2078,2794.6,2794.0,3.2078]
[1738757148249,0.5835,2794.7,2794.1,4.72719246]
[1738757148549,0.5835,2794.7,2794.0,3.2078]
[1738757150552,3.2078,2794.5,2794.0,3.2078]
[1738757150744,0.5835,2794.7,2794.0,3.2078]
[1738757150951,3.2078,2794.6,2794.0,3.2078]
[1738757151254,0.5835,2794.7,2794.0,3.2078]
[1738757151549,3.2078,2794.6,2794.0,3.2078]
[1738757153249,0.5835,2794.7,2793.1,0.0169]
[1738757153250,3.2078,2794.3,2793.6,3.2078]
[1738757153451,44.0078,2794.6,2793.6,3.2078]
[1738757153645,0.5835,2794.7,2793.6,3.2078]
[1738757154154,0.5835,2794.7,2793.9,3.2078]
[1738757154354,3.2078,2794.6,2793.9,3.2078]
[1738757154554,3.2078,2794.0,2793.3,4.4778]
[1738757155348,3.2078,2794.4,2793.3,4.4778]
[1738757155548,3.2078,2794.4,2793.5,3.47067741]
[1738757156348,3.2078,2794.1,2793.3,4.4778]
[1738757156548,0.5625,2794.0,2793.3,4.4778]
[1738757157550,0.5438,2793.9,2793.3,3.2078]
[1738757158053,0.54916529,2793.9,2793.3,3.2078]
[1738757159043,0.00536529,2793.9,2793.4,4.57476827]
[1738757159443,0.00536529,2793.9,2793.3,3.2078]
[1738757160548,0.00536529,2793.9,2793.0,0.1731]
[1738757160549,3.2078,2793.7,2793.0,3.2078]
[1738757160854,0.5395,2793.6,2792.7,3.2078]
[1738757161162,3.2078,2793.3,2792.7,3.2078]
[1738757161353,3.2078,2792.8,2792.0,3.2078]
[1738757161552,0.5395,2792.7,2792.0,3.2078]
[1738757162051,3.7473,2792.7,2792.0,3.2078]
[1738757162857,0.5395,2792.7,2792.0,3.2078]
[1738757163256,0.5395,2792.7,2791.9,3.47067741]
[1738757163257,3.2078,2793.1,2792.4,3.2078]
[1738757163553,3.7898,2793.5,2792.4,3.2078]
[1738757163752,3.7898,2793.5,2792.7,3.2078]
[1738757164657,3.7898,2793.5,2792.7,4.4898]
[1738757165355,3.7898,2793.5,2792.6,3.2078]
[1738757165550,3.2078,2793.0,2792.3,3.2078]
[1738757165752,0.5599,2792.9,2792.3,3.2078]
[1738757166353,0.582,2793.5,2792.6,3.2078]
[1738757166554,0.582,2793.5,2792.9,3.2078]
[1738757167055,3.2078,2793.2,2792.4,3.2078]
[1738757167453,0.5658,2793.1,2792.4,3.2078]
[1738757168355,0.5658,2793.1,2792.3,3.47067741]
[1738757168356,3.7898,2793.5,2792.7,3.2078]
[1738757168676,3.7898,2793.5,2792.3,3.47067741]
[1738757168677,3.7898,2793.5,2793.0,3.2078]
[1738757168848,3.7898,2793.5,2792.4,7.7839796]
[1738757169053,3.2078,2793.1,2792.4,3.2078]
[1738757169952,0.5648,2793.0,2792.4,3.2078]
[1738757171158,3.7898,2793.5,2792.4,3.2078]
[1738757171357,3.7898,2793.5,2792.7,3.2078]
[1738757171659,3.7898,2793.5,2793.0,3.2078]
[1738757171851,3.2078,2793.5,2793.0,3.2078]
[1738757172255,3.2078,2793.5,2792.7,3.2078]
[1738757172457,0.5844,2793.4,2792.7,3.2078]
[1738757174750,0.00536529,2793.9,2793.1,6.67847741]
[1738757174952,0.00536529,2793.9,2793.8,3.2078]
[1738757175556,0.00536529,2793.9,2793.4,3.2078]
[1738757175753,3.2078,2793.7,2793.1,3.2078]
[1738757175951,0.5774,2793.6,2792.8,3.3816]
[1738757176149,0.00536529,2793.9,2793.1,3.2078]
[1738757176354,3.2078,2793.7,2793.1,3.2078]
[1738757176555,3.2078,2793.7,2792.8,3.2078]
[1738757177960,0.00536529,2793.9,2793.4,0.7157]
[1738757178160,0.00536529,2793.9,2793.5,4.93617741]
[1738757178456,0.00536529,2793.9,2793.6,3.2078]
[1738757180765,0.00536529,2793.9,2793.7,4.64944189]
[1738757181260,0.00536529,2793.9,2793.6,3.2078]
[1738757182265,0.00536529,2793.9,2793.6,3.92346]
[1738757182462,0.00536529,2793.9,2793.6,3.2078]
[1738757182663,0.00536529,2793.9,2793.6,6.23626433]
[1738757182961,0.00536529,2793.9,2793.3,3.02846433]
[1738757183158,0.55296529,2793.9,2793.3,3.02846433]
[1738757183559,0.55296529,2793.9,2793.2,3.2078]
[1738757183754,1.11486529,2793.9,2793.2,3.2078]
[1738757183963,3.2078,2793.7,2792.8,3.2078]
[1738757184262,41.3835,2793.6,2792.8,3.2078]
[1738757185663,41.3835,2793.6,2793.0,3.02846433]
[1738757185968,0.5835,2793.6,2793.3,3.02846433]
[1738757186156,1.11486529,2793.9,2793.3,3.02846433]
[1738757186358,0.55296529,2793.9,2793.3,3.02846433]
[1738757187264,0.00536529,2793.9,2793.6,3.02846433]
[1738757187968,0.00536529,2793.9,2793.1,8.0818]
[1738757188167,3.2078,2793.7,2793.1,4.874]
[1738757188364,3.2078,2793.4,2792.8,3.2078]
[1738757190074,1.1001,2793.6,2793.1,3.2078]
[1738757190269,1.1001,2793.6,2793.0,3.02846433]
[1738757190473,4.3079,2793.6,2792.8,4.4988]
[1738757191461,0.5406,2793.6,2793.1,3.2078]
[1738757192066,0.5406,2793.6,2792.8,1.291]
[1738757193172,3.78656529,2793.9,2793.3,3.2078]
[1738757193363,3.21316529,2793.9,2793.3,3.2078]
[1738757193671,3.21316529,2793.9,2793.3,6.6862268]
[1738757193974,3.21316529,2793.9,2793.0,1.24965589]
[1738757194174,0.5562,2793.8,2793.0,1.24965589]
[1738757194570,0.5562,2793.8,2793.1,4.45745589]
[1738757194879,0.5562,2793.8,2793.1,4.57009294]
[1738757195172,0.5562,2793.8,2793.0,1.287]
[1738757195771,3.2078,2793.6,2792.8,3.2078]
[1738757196476,0.5562,2793.8,2792.8,3.2078]
[1738757197168,0.5562,2793.8,2793.1,3.2078]
[1738757198170,0.5562,2793.8,2793.1,4.45745589]
[1738757198475,0.5562,2793.8,2793.1,3.2078]
[1738757198679,3.21316529,2793.9,2793.3,3.4784268]
[1738757198975,3.21316529,2793.9,2793.3,4.72808269]
[1738757199180,3.21316529,2793.9,2793.3,3.4784268]
[1738757199477,3.21316529,2793.9,2793.3,4.72808269]
[1738757199782,0.00536529,2793.9,2793.4,9.20872769]
[1738757200079,0.00536529,2793.9,2793.4,10.45838358]
[1738757200274,0.00536529,2793.9,2793.5,1.24965589]
[1738757200573,0.00536529,2793.9,2793.4,5.74245589]
[1738757200771,0.00536529,2793.9,2793.5,1.24965589]
[1738757200972,0.00536529,2793.9,2793.6,1.24965589]
[1738757201178,0.00536529,2793.9,2793.7,8.65151269]
[1738757201376,3.2078,2794.9,2793.8,1.96527589]
[1738757201571,3.2078,2794.9,2794.4,3.2078]
[1738757202367,40.8,2795.2,2794.4,3.2078]
[1738757202569,1.0786,2795.3,2794.4,3.21316529]
[1738757202570,0.00536529,2794.9,2794.4,3.21316529]
[1738757202876,0.00536529,2794.9,2794.7,3.2078]
[1738757205576,0.00536529,2794.9,2794.8,4.61316689]
[1738757205876,0.5385,2795.8,2794.8,9.48716689]
[1738757206075,3.7485,2796.3,2795.6,3.4784268]
[1738757206282,2.964,2798.2,2795.9,3.2078]
[1738757206283,0.5854,2796.9,2795.9,3.2078]
[1738757206578,0.5385,2797.1,2796.2,3.2078]
[1738757206579,40.8,2797.0,2796.2,3.2078]
[1738757206880,4.287,2797.1,2796.2,3.2078]
[1738757207081,4.287,2797.1,2796.0,3.4784268]
[1738757207272,0.00536529,2796.6,2796.0,3.48379209]
[1738757207471,0.00536529,2796.6,2796.1,4.64380599]
[1738757207782,0.00536529,2796.6,2796.1,3.2078]
[1738757207980,0.00536529,2796.6,2796.2,5.35879599]
[1738757208280,0.00536529,2796.6,2796.2,4.64380599]
[1738757208582,0.00536529,2796.6,2796.1,8.0818]
[1738757210786,0.00536529,2796.6,2796.4,3.2078]
[1738757211279,40.80536529,2796.6,2796.4,3.2078]
[1738757212082,0.00536529,2796.6,2796.4,3.2078]
[1738757212477,40.80536529,2796.6,2796.4,3.2078]
[1738757212683,0.00536529,2796.6,2796.4,3.2078]
[1738757213082,40.8,2796.5,2796.4,3.2078]
[1738757213288,0.00536529,2796.6,2796.4,3.2078]
[1738757213491,0.00536529,2796.6,2796.5,3.02282921]
[1738757214482,0.00536529,2796.6,2796.4,3.2078]
[1738757218791,0.00536529,2796.6,2796.2,3.02282921]
[1738757219088,0.00536529,2796.6,2796.2,6.23062921]
[1738757220681,3.2078,2796.4,2796.0,0.00536529]
[1738757220892,1.092,2796.3,2796.0,0.00536529]
[1738757221587,3.2078,2796.1,2795.3,3.2078]
[1738757221789,3.2078,2795.7,2795.0,3.2078]
[1738757221984,3.7459,2796.0,2795.3,3.2078]
[1738757222692,3.7459,2796.0,2795.4,0.00536529]
[1738757224000,3.7459,2796.0,2795.6,3.2078]
[1738757224689,3.2078,2796.0,2795.6,3.2078]
[1738757226196,0.5458,2796.3,2795.4,0.00536529]
[1738757226197,3.2078,2795.7,2795.4,0.00536529]
[1738757226491,1.0695,2795.6,2795.4,0.00536529]
[1738757226697,0.579,2795.5,2795.4,0.00536529]
[1738757227099,0.579,2795.5,2794.4,0.3584]
[1738757227100,0.579,2795.5,2794.6,3.2078]
[1738757227394,3.2078,2795.3,2794.3,3.2078]
[1738757227585,3.2078,2795.3,2794.4,3.2078]
[1738757227793,40.8,2795.2,2794.4,3.2078]
[1738757228190,3.2078,2795.3,2794.4,3.2078]
[1738757228387,0.00536529,2795.1,2794.4,3.2078]
[1738757229208,0.00536529,2795.1,2794.8,3.2078]
[1738757229406,0.00536529,2795.1,2795.0,3.02282921]
[1738757229609,0.00536529,2795.1,2794.5,3.2078]
[1738757230097,0.00536529,2795.1,2794.8,3.2078]
[1738757230804,0.00536529,2795.1,2794.5,3.2078]
[1738757231011,0.00536529,2795.1,2794.4,3.2078]
[1738757231205,0.00536529,2795.1,2794.1,6.23062921]
[1738757231407,0.00536529,2795.1,2794.4,6.23062921]
[1738757231903,0.00536529,2795.1,2794.4,3.2078]
[1738757235006,0.00536529,2795.1,2794.7,6.23062921]
[1738757237814,0.00536529,2795.1,2795.0,6.23062921]
[1738757239216,0.00536529,2795.1,2795.0,3.2078]
[1738757242821,3.2078,2796.2,2795.0,15.98721006]
[1738757243020,3.2078,2796.2,2795.6,3.2078]
[1738757243221,1.1153,2796.4,2795.9,3.2078]
[1738757243813,3.2078,2797.1,2796.2,3.2078]
[1738757244018,0.5306,2797.0,2796.5,3.2078]
[1738757244221,3.2078,2797.4,2796.8,6.23062921]
[1738757244418,0.00536529,2797.0,2796.8,3.2078]
[1738757244825,0.00536529,2797.0,2796.9,5.25779633]
[1738757245017,1.1116,2798.1,2796.9,6.50745222]
[1738757245220,1.1116,2798.1,2797.8,3.2078]
[1738757245416,0.581,2798.1,2797.8,3.2078]
[1738757245734,0.581,2798.1,2797.7,3.02282921]
[1738757246026,0.581,2798.1,2797.6,3.2078]
[1738757246221,0.581,2798.1,2797.6,3.21316529]
[1738757246222,3.2078,2798.0,2797.6,3.21316529]
[1738757247021,3.2078,2797.7,2797.6,0.00536529]
[1738757247221,3.2078,2797.7,2797.0,4.874]
[1738757247424,3.2078,2797.7,2797.1,3.02282921]
[1738757247621,3.7888,2798.1,2797.5,3.2078]
[1738757247827,3.7888,2798.1,2797.7,3.02282921]
[1738757248631,3.7888,2798.1,2797.6,0.00536529]
[1738757249623,3.2078,2797.8,2797.2,3.2078]
[1738757250326,3.2078,2797.3,2796.2,3.2078]
[1738757250624,3.02282921,2797.5,2796.2,3.2078]
[1738757250625,3.2078,2797.0,2796.2,3.2078]
[1738757251030,3.2078,2797.0,2796.0,1.98504]
[1738757251031,40.8,2796.9,2796.6,3.2078]
[1738757251228,4.282,2797.2,2796.3,3.2078]
[1738757251427,7.30482921,2797.2,2796.3,3.2078]
[1738757251733,0.00536529,2797.0,2796.3,3.2078]
[1738757252029,3.2078,2796.9,2796.0,3.2078]
[1738757252227,3.2078,2796.9,2796.1,3.02282921]
[1738757252827,0.5688,2796.8,2796.1,3.02282921]
[1738757254231,0.5688,2796.8,2796.0,3.2078]
[1738757259738,3.2078,2796.6,2795.8,3.02282921]
[1738757259935,3.2078,2796.6,2795.6,3.2078]
[1738757260143,0.5688,2796.8,2795.0,4.874]
[1738757260144,6.23062921,2796.3,2795.0,3.2078]
[1738757260335,3.2078,2796.0,2795.0,3.2078]
[1738757260641,0.5372,2795.9,2795.0,3.2078]
[1738757261341,6.23062921,2795.7,2794.7,3.2078]
[1738757261540,3.2078,2795.4,2794.7,3.2078]
[1738757261740,1.0951,2795.3,2794.7,3.2078]
[1738757261941,1.10046529,2795.3,2794.7,3.2078]
[1738757263142,0.00536529,2795.3,2795.0,3.2078]
[1738757264343,0.00536529,2795.3,2794.7,3.2078]
[1738757265945,0.00536529,2795.3,2795.2,3.02282921]
[1738757266548,0.00536529,2795.3,2795.0,3.2078]
[1738757271650,0.00536529,2795.3,2794.9,3.02282921]
[1738757272042,0.00536529,2795.3,2794.7,3.2078]
[1738757274443,3.2078,2795.2,2794.3,3.2078]
[1738757274648,3.2078,2794.9,2794.3,3.2078]
[1738757276545,1.0966,2795.1,2794.3,6.23062921]
[1738757276750,0.5691,2795.1,2794.6,6.23062921]
[1738757280353,3.2078,2795.2,2794.6,6.23062921]
[1738757280548,0.00536529,2795.3,2794.9,6.23062921]
[1738757280751,0.00536529,2795.3,2794.9,3.2078]
[1738757281346,0.00536529,2795.3,2794.6,6.23062921]
[1738757282555,0.00536529,2795.3,2794.9,6.23062921]
[1738757283150,0.00536529,2795.3,2795.2,3.02282921]
[1738757284857,3.2078,2796.1,2795.2,10.97919043]
[1738757285059,3.2078,2796.1,2795.6,3.2078]
[1738757285353,3.2078,2796.1,2795.2,6.23062921]
[1738757285553,3.2078,2795.8,2795.0,0.00536529]
[1738757285755,1.6598,2795.7,2795.0,0.00536529]
[1738757285946,1.13286529,2795.7,2795.2,3.02282921]
[1738757286151,0.54856529,2795.7,2795.2,6.23062921]
[1738757288159,0.54856529,2795.7,2795.3,1.24965589]
[1738757288354,0.54856529,2795.7,2795.2,6.23062921]
[1738757288661,0.54856529,2795.7,2795.3,1.24965589]
[1738757289252,0.00536529,2795.7,2795.5,3.02282921]
[1738757289561,0.00536529,2795.7,2795.5,4.2724851]